[Event "FIDE Womens World Cup 2021"]
[Site "Sochi"]
[Date "2021.07.17"]
[Round "2.8"]
[White "Salimova, Nurgyul"]
[Black "Paehtz, Elisabeth"]
[Result "1/2-1/2"]
[ECO "E62"]
[WhiteElo "2395"]
[BlackElo "2466"]
[Annotator "ChessBase"]
[PlyCount "189"]
[EventDate "2021.07.12"]
[EventType "k.o."]
[EventCountry "RUS"]
[SourceTitle "playchess.com"]
[Source "ChessBase"]
[SourceQuality "1"]
[TimeControl "300+3"]

1. d4 {[%emt 0:00:02]} Nf6 {[%emt 0:00:00]} 2. Nf3 {[%emt 0:00:03]} g6 {[%emt 0:00:01]} 3. c4 {[%emt 0:00:03]} Bg7 {[%emt 0:00:01]} 4. g3 {[%emt 0:00:03]} O-O {[%emt 0:00:01]} 5. Bg2 {[%emt 0:00:02]} d6 {[%emt 0:00:01]} 6. O-O {[%emt 0:00:06]} Nc6 {[%emt 0:00:01]} 7. Nc3 {[%emt 0:00:07]} Bg4 {[%emt 0:00:02]} 8. Be3 {[%emt 0:01:08]} Qc8 {[%emt 0:00:09]} 9. Re1 {[%emt 0:00:17]} e5 {[%emt 0:00:05]} 10. dxe5 {[%emt 0:00:05]} dxe5 {[%emt 0:00:06]} 11. Qc1 {[%emt 0:00:25]} Re8 {[%emt 0:00:25]} 12. Ng5 {[%emt 0:00:16]} Nd4 {[%emt 0:00:14]} 13. h3 {[%emt 0:00:34]} Bd7 {[%emt 0:00:02]} 14. Kh2 {[%emt 0:00:17]} Bf5 {[%emt 0:00:12]} 15. Bxd4 {[%emt 0:00:21]} exd4 {[%emt 0:00:02]} 16. Nb5 {[%emt 0:00:13]} Ne4 {[%emt 0:00:35]} 17. Bxe4 {[%emt 0:00:25]} Bxe4 {[%emt 0:00:01]} 18. Qf4 {[%emt 0:00:06]} Bf5 {[%emt 0:00:10]} 19. Qxc7 {[%emt 0:00:08]} Rf8 {[%emt 0:00:49]} 20. Qxc8 {[%emt 0:00:06]} Raxc8 {[%emt 0:00:14]} 21. Nd6 {[%emt 0:00:07]} Rc6 {[%emt 0:00:07]} 22. Nxf5 {[%emt 0:00:02]} gxf5 {[%emt 0:00:01]} 23. b3 {[%emt 0:00:12]} d3 {[%emt 0:00:08]} 24. Rad1 {[%emt 0:00:10]} Bc3 {[%emt 0:00:01]} 25. exd3 {[%emt 0:00:14]} Bxe1 {[%emt 0:00:02]} 26. Rxe1 {[%emt 0:00:00]} Rd6 {[%emt 0:00:07]} 27. Re7 {[%emt 0:00:07]} Rxd3 {[%emt 0:00:03]} 28. Kg2 {[%emt 0:00:08]} Rfd8 {[%emt 0:00:35]} 29. Rxb7 R8d7 30. Rb5 {[%emt 0:00:24]} Rd2 {[%emt 0:00:08]} 31. Rxf5 {[%emt 0:00:05]} Rxa2 {[%emt 0:00:04]} 32. Ne4 {[%emt 0:00:01]} Re7 {[%emt 0:00:11]} 33. Nf6+ {[%emt 0:00:06]} Kg7 {[%emt 0:00:07]} 34. Nd5 {[%emt 0:00:03]} Rb7 {[%emt 0:00:07]} 35. b4 {[%emt 0:00:05]} Rd2 {[%emt 0:00:15]} 36. b5 {[%emt 0:00:11]} Rd4 {[%emt 0:00:10]} 37. Ne3 {[%emt 0:00:02]} Rc7 {[%emt 0:00:13]} 38. c5 {[%emt 0:00:08]} Kg6 {[%emt 0:00:09]} 39. Re5 {[%emt 0:00:03]} f6 {[%emt 0:00:02]} 40. Rf5 {[%emt 0:00:04]} Rb4 {[%emt 0:00:52]} 41. c6 {[%emt 0:00:01]} a6 {[%emt 0:00:12]} 42. bxa6 {[%emt 0:00:04]} Rxc6 {[%emt 0:00:15]} 43. Ra5 {[%emt 0:00:04]} Rbb6 {[%emt 0:00:03]} 44. Ra4 {[%emt 0:00:02]} Rxa6 {[%emt 0:00:01]} 45. Rg4+ {[%emt 0:00:02]} Kf7 {[%emt 0:00:02]} 46. h4 {[%emt 0:00:01]} Ra5 {[%emt 0:00:02]} 47. Rf4 {[%emt 0:00:02]} Re5 {[%emt 0:00:03]} 48. Ng4 {[%emt 0:00:02]} Rd5 {[%emt 0:00:02]} 49. Ne3 {[%emt 0:00:03]} Re5 {[%emt 0:00:02]} 50. Rf3 {[%emt 0:00:01]} h5 {[%emt 0:00:04]} 51. Rf4 {[%emt 0:00:03]} Kg6 {[%emt 0:00:02]} 52. Rd4 {[%emt 0:00:05]} Ree6 {[%emt 0:00:04]} 53. Nd5 {[%emt 0:00:02]} Re5 {[%emt 0:00:04]} 54. Nf4+ {[%emt 0:00:02]} Kf7 {[%emt 0:00:03]} 55. Rd7+ {[%emt 0:00:01]} Re7 {[%emt 0:00:08]} 56. Rd5 {[%emt 0:00:02]} Re5 {[%emt 0:00:02]} 57. Rd7+ {[%emt 0:00:02]} Re7 {[%emt 0:00:01]} 58. Rd8 {[%emt 0:00:07]} Rc5 {[%emt 0:00:02]} 59. Rh8 {[%emt 0:00:04]} Kg7 {[%emt 0:00:02]} 60. Rxh5 {[%emt 0:00:07]} Rxh5 {[%emt 0:00:01]} 61. Nxh5+ {[%emt 0:00:01]} Kg6 {[%emt 0:00:01]} 62. Nf4+ {[%emt 0:00:02]} Kh6 {[%emt 0:00:03]} 63. Nd5 {[%emt 0:00:01]} Re6 {[%emt 0:00:01]} 64. Ne3 {[%emt 0:00:03]} Kg6 {[%emt 0:00:02]} 65. g4 {[%emt 0:00:04]} Ra6 {[%emt 0:00:01]} 66. Kg3 {[%emt 0:00:02]} Ra4 {[%emt 0:00:02]} 67. Nf5 {[%emt 0:00:02]} Ra3+ {[%emt 0:00:01]} 68. f3 {[%emt 0:00:01]} Ra4 {[%emt 0:00:01]} 69. h5+ {[%emt 0:00:04]} Kf7 {[%emt 0:00:05]} 70. Nd6+ {[%emt 0:00:04]} Ke6 {[%emt 0:00:04]} 71. Ne4 {[%emt 0:00:01]} Kf7 {[%emt 0:00:03]} 72. Kf4 {[%emt 0:00:05]} Ra5 {[%emt 0:00:01]} 73. Nd6+ {[%emt 0:00:06]} Kg7 {[%emt 0:00:03]} 74. Nf5+ {[%emt 0:00:02]} Kf7 {[%emt 0:00:00]} 75. h6 {[%emt 0:00:03]} Kg6 {[%emt 0:00:03]} 76. Kg3 {[%emt 0:00:06]} Rb5 {[%emt 0:00:06]} 77. f4 {[%emt 0:00:06]} Ra5 {[%emt 0:00:02]} 78. Kh4 {[%emt 0:00:03]} Ra4 {[%emt 0:00:06]} 79. Kg3 {[%emt 0:00:03]} Ra5 {[%emt 0:00:01]} 80. Kh4 {[%emt 0:00:04]} Ra4 {[%emt 0:00:01]} 81. Ne7+ {[%emt 0:00:01]} Kxh6 {[%emt 0:00:02]} 82. Nd5 {[%emt 0:00:01]} Kg6 {[%emt 0:00:03]} 83. f5+ {[%emt 0:00:04]} Kg7 {[%emt 0:00:03]} 84. Nc7 {[%emt 0:00:02]} Ra1 {[%emt 0:00:01]} 85. Ne6+ {[%emt 0:00:03]} Kf7 {[%emt 0:00:06]} 86. Kg3 {[%emt 0:00:05]} Ra3+ {[%emt 0:00:02]} 87. Kh4 {[%emt 0:00:02]} Ra1 {[%emt 0:00:01]} 88. Nf4 {[%emt 0:00:02]} Rh1+ {[%emt 0:00:02]} 89. Kg3 {[%emt 0:00:02]} Rg1+ {[%emt 0:00:01]} 90. Kf3 {[%emt 0:00:02]} Rf1+ {[%emt 0:00:01]} 91. Ke4 {[%emt 0:00:02]} Re1+ {[%emt 0:00:02]} 92. Kf3 {[%emt 0:00:04]} Rf1+ {[%emt 0:00:01]} 93. Kg3 {[%emt 0:00:02]} Rg1+ {[%emt 0:00:01]} 94. Kh4 {[%emt 0:00:07]} Rh1+ {[%emt 0:00:01]} 95. Kg3 {[%emt 0:00:03]} 1/2-1/2

[Event "FIDE Womens World Cup 2021"]
[Site "Sochi"]
[Date "2021.07.19"]
[Round "3.2"]
[White "Lagno, Kateryna"]
[Black "Munguntuul, Batkhuyag"]
[Result "1/2-1/2"]
[ECO "B67"]
[WhiteElo "2559"]
[BlackElo "2428"]
[Annotator "ChessBase"]
[PlyCount "117"]
[EventDate "2021.07.12"]
[EventType "k.o."]
[EventCountry "RUS"]
[SourceTitle "playchess.com"]
[Source "ChessBase"]
[SourceQuality "1"]
[TimeControl "40/5400+30:1800+30"]

1. e4 {[%emt 0:00:02]} c5 {[%emt 0:00:04]} 2. Nf3 {[%emt 0:00:06]} Nc6 {[%emt 0:00:05]} 3. d4 {[%emt 0:00:07]} cxd4 {[%emt 0:00:04]} 4. Nxd4 {[%emt 0:00:04]} Nf6 {[%emt 0:00:07]} 5. Nc3 {[%emt 0:00:14]} d6 {[%emt 0:00:06]} 6. Bg5 {[%emt 0:01:00]} e6 {[%emt 0:00:51]} 7. Qd2 {[%emt 0:00:11]} a6 {[%emt 0:00:31]} 8. O-O-O {[%emt 0:00:32]} Bd7 {[%emt 0:00:21]} 9. f3 {[%emt 0:01:45]} Nxd4 {[%emt 0:00:34]} 10. Qxd4 {[%emt 0:00:05]} Be7 {[%emt 0:00:16]} 11. Kb1 {[%emt 0:13:31]} b5 {[%emt 0:04:39]} 12. h4 {[%emt 0:02:54]} Qc7 {[%emt 0:02:21]} 13. Qd2 {[%emt 0:05:45]} b4 {[%emt 0:03:26]} 14. Ne2 {[%emt 0:00:10]} a5 {[%emt 0:00:25]} 15. g4 {[%emt 0:03:19]} h5 {[%emt 0:07:51]} 16. gxh5 {[%emt 0:08:36]} Nxh5 {[%emt 0:01:42]} 17. Nf4 {[%emt 0:21:47]} Rb8 {[%emt 0:12:16]} 18. Rg1 {[%emt 0:07:57]} g6 {[%emt 0:17:31]} 19. Qd4 {[%emt 0:06:02]} Rh7 {[%emt 0:00:20]} 20. Nxh5 {[%emt 0:00:27]} Rxh5 {[%emt 0:05:43]} 21. Bxe7 {[%emt 0:01:00]} Kxe7 {[%emt 0:00:32]} 22. Rxg6 {[%emt 0:00:33]} Re5 {[%emt 0:17:20]} 23. f4 {[%emt 0:03:25]} Rc8 {[%emt 0:00:31]} 24. Bd3 {[%emt 0:06:21]} Qc5 {[%emt 0:01:16]} 25. Qxc5 {[%emt 0:00:08]} Rexc5 {[%emt 0:00:07]} 26. Rg5 {[%emt 0:00:13]} Rh8 {[%emt 0:01:12]} 27. Rh1 {[%emt 0:00:24]} e5 {[%emt 0:03:18]} 28. fxe5 {[%emt 0:00:29]} Rxe5 {[%emt 0:00:33]} 29. Rxe5+ {[%emt 0:00:36]} dxe5 {[%emt 0:00:01]} 30. Kc1 {[%emt 0:00:41]} Bc6 {[%emt 0:02:13]} 31. Rh2 {[%emt 0:01:05]} Rg8 {[%emt 0:02:01]} 32. h5 {[%emt 0:03:17]} Rg1+ {[%emt 0:00:17]} 33. Kd2 {[%emt 0:00:03]} Kf8 {[%emt 0:00:11]} 34. h6 {[%emt 0:01:33]} Kg8 {[%emt 0:00:26]} 35. h7+ {[%emt 0:00:55]} Kh8 {[%emt 0:00:01]} 36. Rh5 {[%emt 0:00:11]} f6 {[%emt 0:05:02]} 37. Rh6 {[%emt 0:00:07]} Rg2+ {[%emt 0:02:42]} 38. Ke3 {[%emt 0:00:10]} Rg3+ {[%emt 0:00:02]} 39. Kf2 {[%emt 0:01:05]} Rg4 {[%emt 0:00:04]} 40. Rxf6 {[%emt 0:00:25]} Bxe4 {[%emt 0:00:09]} 41. Rf7 {[%emt 0:37:37]} Bxd3 {[%emt 0:31:55]} 42. cxd3 {[%emt 0:01:57]} Rh4 {[%emt 0:00:04]} 43. Ke3 {[%emt 0:01:03]} Rh2 {[%emt 0:00:14]} 44. Rf2 {[%emt 0:00:47]} Rxh7 {[%emt 0:00:53]} 45. Ke4 {[%emt 0:02:38]} Rh5 {[%emt 0:01:12]} 46. b3 {[%emt 0:00:00]} Kg7 {[%emt 0:00:00]} 47. Rc2 {[%emt 0:00:00]} Kf7 {[%emt 0:00:00]} 48. Rc7+ {[%emt 0:00:00]} Ke6 {[%emt 0:00:00]} 49. Rc6+ {[%emt 0:00:00]} Kd7 {[%emt 0:00:00]} 50. Ra6 {[%emt 0:00:00]} Rh4+ {[%emt 0:00:00]} 51. Kd5 {[%emt 0:00:00]} Rd4+ {[%emt 0:00:00]} 52. Kxe5 {[%emt 0:00:00]} Rxd3 {[%emt 0:00:00]} 53. Rxa5 {[%emt 0:00:00]} Kc6 {[%emt 0:00:00]} 54. Ke4 {[%emt 0:00:00]} Rd2 {[%emt 0:00:00]} 55. Ke3 {[%emt 0:00:00]} Rh2 {[%emt 0:00:00]} 56. Kd3 {[%emt 0:00:00]} Rh3+ {[%emt 0:00:00]} 57. Kc4 {[%emt 0:00:00]} Rh4+ {[%emt 0:00:00]} 58. Kd3 {[%emt 0:00:00]} Rh3+ {[%emt 0:00:00]} 59. Ke4 1/2-1/2

[Event "FIDE Womens World Cup 2021"]
[Site "Sochi"]
[Date "2021.07.19"]
[Round "3.2"]
[White "Harika, Dronavalli"]
[Black "Gunina, Valentina"]
[Result "1/2-1/2"]
[ECO "B13"]
[WhiteElo "2515"]
[BlackElo "2437"]
[Annotator "ChessBase"]
[PlyCount "155"]
[EventDate "2021.07.12"]
[EventType "k.o."]
[EventCountry "RUS"]
[SourceTitle "playchess.com"]
[Source "ChessBase"]
[SourceQuality "1"]
[TimeControl "40/5400+30:1800+30"]

1. e4 {[%emt 0:00:09]} c6 {[%emt 0:00:13]} 2. d4 {[%emt 0:00:11]} d5 {[%emt 0:00:14]} 3. exd5 {[%emt 0:00:17]} cxd5 {[%emt 0:00:05]} 4. Nf3 {[%emt 0:00:07]} Nc6 {[%emt 0:03:00]} 5. Bb5 {[%emt 0:01:18]} Nf6 {[%emt 0:03:30]} 6. Ne5 {[%emt 0:00:55]} Bd7 {[%emt 0:00:17]} 7. Nxd7 {[%emt 0:00:25]} Qxd7 {[%emt 0:00:59]} 8. c3 {[%emt 0:00:35]} e6 {[%emt 0:02:31]} 9. Nd2 {[%emt 0:01:49]} Bd6 {[%emt 0:02:52]} 10. O-O {[%emt 0:00:57]} O-O {[%emt 0:01:23]} 11. Re1 {[%emt 0:02:33]} Qc7 {[%emt 0:02:59]} 12. g3 {[%emt 0:00:37]} a6 {[%emt 0:00:51]} 13. Bd3 {[%emt 0:00:12]} e5 {[%emt 0:01:06]} 14. dxe5 {[%emt 0:00:16]} Nxe5 {[%emt 0:00:11]} 15. Nf3 {[%emt 0:00:18]} Rfe8 {[%emt 0:02:45]} 16. Nxe5 {[%emt 0:08:17]} Bxe5 {[%emt 0:00:49]} 17. Qf3 {[%emt 0:03:06]} h6 {[%emt 0:07:10]} 18. Be3 {[%emt 0:05:46]} Re7 {[%emt 0:06:58]} 19. Re2 {[%emt 0:13:07]} Rae8 {[%emt 0:09:11]} 20. Rae1 {[%emt 0:01:57]} Qd6 {[%emt 0:03:26]} 21. Rd1 {[%emt 0:06:18]} Qc6 {[%emt 0:07:23]} 22. Bc2 {[%emt 0:08:11]} Bc7 {[%emt 0:05:01]} 23. Bb3 {[%emt 0:04:42]} Re4 {[%emt 0:01:43]} 24. Red2 {[%emt 0:14:04]} Bb6 {[%emt 0:05:41]} 25. Bxb6 {[%emt 0:00:16]} Qxb6 {[%emt 0:00:07]} 26. Kg2 {[%emt 0:00:24]} R4e5 {[%emt 0:02:05]} 27. Rd4 {[%emt 0:03:05]} Re2 {[%emt 0:02:00]} 28. Rb4 {[%emt 0:08:24]} Qa7 {[%emt 0:09:37]} 29. Bxd5 {[%emt 0:02:21]} b5 {[%emt 0:03:27]} 30. Bc6 {[%emt 0:03:40]} R8e5 {[%emt 0:00:30]} 31. Rd8+ {[%emt 0:02:14]} Kh7 {[%emt 0:00:50]} 32. Qd3+ {[%emt 0:01:16]} g6 {[%emt 0:00:50]} 33. Rf4 {[%emt 0:00:42]} Ng4 {[%emt 0:06:40]} 34. Qd4 {[%emt 0:02:20]} Qc7 {[%emt 0:07:02]} 35. Qd7 {[%emt 0:00:58]} Re7 {[%emt 0:01:25]} 36. Qxc7 {[%emt 0:01:39]} Rxc7 {[%emt 0:00:02]} 37. Rxg4 {[%emt 0:01:43]} Rxc6 {[%emt 0:00:03]} 38. Rf4 {[%emt 0:00:14]} Rc7 {[%emt 0:01:03]} 39. Rb4 {[%emt 0:00:26]} Rc5 {[%emt 0:02:23]} 40. Rd3 {[%emt 0:01:45]} a5 {[%emt 0:00:50]} 41. Rb3 {[%emt 0:30:32]} Kg7 {[%emt 0:01:43]} 42. Rf3 {[%emt 0:00:00]} a4 {[%emt 0:11:14]} 43. Rb4 {[%emt 0:00:00]} a3 {[%emt 0:00:02]} 44. bxa3 {[%emt 0:00:00]} Rxa2 {[%emt 0:00:09]} 45. Rb3 {[%emt 0:00:00]} h5 {[%emt 0:00:38]} 46. h3 {[%emt 0:00:00]} Re5 {[%emt 0:05:17]} 47. g4 {[%emt 0:00:00]} Rc5 {[%emt 0:00:40]} 48. Rf4 {[%emt 0:00:00]} hxg4 {[%emt 0:01:01]} 49. hxg4 {[%emt 0:00:00]} Rc2 {[%emt 0:00:38]} 50. Rf3 {[%emt 0:00:00]} Rc4 {[%emt 0:01:49]} 51. Kg3 {[%emt 0:00:00]} Rc1 {[%emt 0:02:52]} 52. Rxb5 {[%emt 0:00:00]} R4xc3 {[%emt 0:00:09]} 53. Ra5 {[%emt 0:00:00]} Rg1+ {[%emt 0:03:43]} 54. Kh2 {[%emt 0:00:00]} Rcc1 {[%emt 0:00:04]} 55. Ra7 {[%emt 0:00:00]} Rh1+ {[%emt 0:02:05]} 56. Kg3 {[%emt 0:00:11]} Rhg1+ {[%emt 0:00:16]} 57. Kf4 {[%emt 0:00:05]} Rc8 {[%emt 0:02:30]} 58. Ke3 {[%emt 0:02:37]} Re8+ {[%emt 0:00:18]} 59. Kd2 {[%emt 0:00:15]} Rd8+ {[%emt 0:00:15]} 60. Kc2 {[%emt 0:00:14]} Rc8+ {[%emt 0:00:07]} 61. Kb2 {[%emt 0:00:33]} Rb8+ {[%emt 0:00:09]} 62. Ka2 {[%emt 0:00:56]} Rf8 {[%emt 0:00:45]} 63. Ra4 {[%emt 0:00:48]} Rd8 {[%emt 0:00:57]} 64. Ra7 {[%emt 0:01:52]} Rf8 {[%emt 0:00:04]} 65. Ra4 {[%emt 0:01:16]} Rd8 {[%emt 0:00:04]} 66. Raf4 {[%emt 0:00:07]} Rd7 {[%emt 0:00:03]} 67. Rc3 {[%emt 0:00:36]} Rd2+ {[%emt 0:02:03]} 68. Kb3 {[%emt 0:00:17]} g5 {[%emt 0:01:05]} 69. Rf5 {[%emt 0:00:49]} Rxg4 {[%emt 0:00:05]} 70. Rc7 {[%emt 0:00:19]} Rd3+ {[%emt 0:00:25]} 71. Kb2 {[%emt 0:00:26]} Kg6 {[%emt 0:00:43]} 72. Rfxf7 {[%emt 0:00:53]} Re4 {[%emt 0:00:51]} 73. Rg7+ {[%emt 0:01:15]} Kh6 {[%emt 0:00:18]} 74. Rh7+ {[%emt 0:01:57]} Kg6 {[%emt 0:00:03]} 75. Rhg7+ {[%emt 0:00:32]} Kh6 {[%emt 0:00:09]} 76. Rge7 {[%emt 0:00:40]} Rxe7 {[%emt 0:00:13]} 77. Rxe7 {[%emt 0:00:04]} Rd2+ {[%emt 0:00:02]} 78. Kb3 {[%emt 0:00:13]} 1/2-1/2

[Event "FIDE Womens World Cup 2021"]
[Site "Sochi"]
[Date "2021.07.19"]
[Round "3.2"]
[White "Khademalsharieh, Sarasadat"]
[Black "Mammadzada, Gunay"]
[Result "1-0"]
[ECO "D11"]
[WhiteElo "2494"]
[BlackElo "2460"]
[Annotator "ChessBase"]
[PlyCount "65"]
[EventDate "2021.07.12"]
[EventType "k.o."]
[EventCountry "RUS"]
[SourceTitle "playchess.com"]
[Source "ChessBase"]
[SourceQuality "1"]
[TimeControl "40/5400+30:1800+30"]

1. d4 {[%emt 0:00:05]} d5 {[%emt 0:00:06]} 2. c4 {[%emt 0:00:08]} c6 {[%emt 0:00:05]} 3. Nf3 {[%emt 0:00:17]} Nf6 {[%emt 0:00:05]} 4. g3 {[%emt 0:00:19]} dxc4 {[%emt 0:02:04]} 5. Bg2 {[%emt 0:00:24]} g6 {[%emt 0:00:20]} 6. O-O {[%emt 0:00:22]} Bg7 {[%emt 0:00:05]} 7. a4 {[%emt 0:00:05]} Ne4 {[%emt 0:00:35]} 8. Nc3 {[%emt 0:00:12]} Nd6 {[%emt 0:01:06]} 9. e4 {[%emt 0:00:15]} Bg4 {[%emt 0:04:46]} 10. Be3 {[%emt 0:00:52]} Na6 {[%emt 0:15:10]} 11. h3 {[%emt 0:01:42]} Bxf3 {[%emt 0:00:43]} 12. Qxf3 {[%emt 0:00:07]} Qb6 {[%emt 0:28:01]} 13. a5 {[%emt 0:16:40]} Qd8 {[%emt 0:04:53]} 14. Qe2 {[%emt 0:07:11]} O-O {[%emt 0:00:35]} 15. Rfd1 {[%emt 0:02:16]} Nc7 {[%emt 0:08:51]} 16. f4 {[%emt 0:08:11]} Qd7 {[%emt 0:05:14]} 17. Bf2 {[%emt 0:03:12]} f5 {[%emt 0:10:23]} 18. e5 {[%emt 0:01:51]} Ndb5 {[%emt 0:00:29]} 19. Nxb5 {[%emt 0:12:27]} cxb5 {[%emt 0:01:22]} 20. d5 {[%emt 0:00:10]} Na6 {[%emt 0:00:58]} 21. d6 {[%emt 0:04:08]} e6 {[%emt 0:03:54]} 22. Qf3 {[%emt 0:00:50]} Rfb8 {[%emt 0:00:53]} 23. b3 {[%emt 0:00:19]} cxb3 {[%emt 0:01:55]} 24. Qxb3 {[%emt 0:00:23]} Rc8 {[%emt 0:00:12]} 25. Rac1 {[%emt 0:01:08]} Kf7 {[%emt 0:01:07]} 26. Qf3 {[%emt 0:02:11]} Rcb8 {[%emt 0:01:45]} 27. g4 {[%emt 0:08:40]} Kg8 {[%emt 0:00:17]} 28. gxf5 {[%emt 0:00:16]} gxf5 {[%emt 0:00:02]} 29. Rd3 {[%emt 0:00:38]} Kh8 {[%emt 0:00:54]} 30. Rdc3 {[%emt 0:01:57]} Qf7 {[%emt 0:02:17]} 31. Kh1 {[%emt 0:03:49]} Qe8 {[%emt 0:00:50]} 32. Rc7 {[%emt 0:06:58]} Nb4 {[%emt 0:03:43]} 33. Qg3 {[%emt 0:04:46]} 1-0

[Event "FIDE Womens World Cup 2021"]
[Site "Sochi"]
[Date "2021.07.19"]
[Round "3.2"]
[White "Shuvalova, Polina"]
[Black "Garifullina, Leya"]
[Result "1/2-1/2"]
[ECO "B91"]
[WhiteElo "2489"]
[BlackElo "2390"]
[Annotator "ChessBase"]
[PlyCount "119"]
[EventDate "2021.07.12"]
[EventType "k.o."]
[EventCountry "RUS"]
[SourceTitle "playchess.com"]
[Source "ChessBase"]
[SourceQuality "1"]
[TimeControl "40/5400+30:1800+30"]

1. e4 {[%emt 0:00:03]} c5 {[%emt 0:00:11]} 2. Nf3 {[%emt 0:00:04]} d6 {[%emt 0:00:06]} 3. d4 {[%emt 0:00:06]} cxd4 {[%emt 0:00:07]} 4. Nxd4 {[%emt 0:00:04]} Nf6 {[%emt 0:00:08]} 5. Nc3 {[%emt 0:00:03]} a6 {[%emt 0:00:07]} 6. g3 {[%emt 0:00:04]} e5 {[%emt 0:00:25]} 7. Nb3 {[%emt 0:00:07]} Be7 {[%emt 0:00:11]} 8. Bg2 {[%emt 0:00:21]} b5 {[%emt 0:01:08]} 9. a4 {[%emt 0:01:15]} b4 {[%emt 0:00:18]} 10. Nd5 {[%emt 0:00:03]} Nxd5 {[%emt 0:00:20]} 11. Qxd5 {[%emt 0:00:09]} Ra7 {[%emt 0:00:12]} 12. Be3 {[%emt 0:01:13]} Be6 {[%emt 0:00:36]} 13. Qd3 {[%emt 0:03:07]} Rb7 {[%emt 0:01:08]} 14. O-O {[%emt 0:02:00]} a5 {[%emt 0:02:12]} 15. f4 {[%emt 0:04:50]} f6 {[%emt 0:04:31]} 16. fxe5 {[%emt 0:07:20]} fxe5 {[%emt 0:01:47]} 17. Rad1 {[%emt 0:03:45]} Qc7 {[%emt 0:04:12]} 18. Nd2 {[%emt 0:08:59]} Nd7 {[%emt 0:05:45]} 19. b3 {[%emt 0:02:23]} Nf6 {[%emt 0:02:49]} 20. h3 {[%emt 0:03:51]} O-O {[%emt 0:05:21]} 21. Nf3 {[%emt 0:09:20]} Rbb8 {[%emt 0:12:27]} 22. Rf2 {[%emt 0:01:53]} Rbc8 {[%emt 0:04:47]} 23. Ng5 {[%emt 0:10:43]} Bd7 {[%emt 0:09:16]} 24. Rxf6 {[%emt 0:10:03]} gxf6 {[%emt 0:02:57]} 25. Qd5+ {[%emt 0:00:18]} Kg7 {[%emt 0:01:13]} 26. Ne6+ {[%emt 0:00:16]} Bxe6 {[%emt 0:00:07]} 27. Qxe6 {[%emt 0:00:02]} Qd8 {[%emt 0:06:02]} 28. Bf1 {[%emt 0:04:02]} Rxc2 {[%emt 0:05:00]} 29. g4 {[%emt 0:06:09]} Rc3 {[%emt 0:02:46]} 30. Bd2 {[%emt 0:01:33]} Rc7 {[%emt 0:05:23]} 31. Bc4 {[%emt 0:07:26]} Qc8 {[%emt 0:01:20]} 32. Qd5 {[%emt 0:00:10]} Rxc4 {[%emt 0:00:50]} 33. bxc4 {[%emt 0:01:03]} Qc5+ {[%emt 0:00:27]} 34. Qxc5 {[%emt 0:03:00]} dxc5 {[%emt 0:00:04]} 35. Be3 {[%emt 0:03:41]} Rb8 {[%emt 0:05:25]} 36. Kf2 {[%emt 0:02:09]} b3 {[%emt 0:00:58]} 37. Rb1 {[%emt 0:01:57]} Rb4 {[%emt 0:00:27]} 38. Ke2 {[%emt 0:03:58]} Rxc4 {[%emt 0:02:11]} 39. Rxb3 {[%emt 0:00:03]} Rxa4 {[%emt 0:00:13]} 40. Rb7 {[%emt 0:00:18]} Kf8 {[%emt 0:00:10]} 41. Ra7 {[%emt 0:05:32]} Rxe4 {[%emt 0:05:36]} 42. Rxa5 {[%emt 0:03:15]} Rc4 {[%emt 0:01:10]} 43. Kd3 {[%emt 0:03:47]} Rb4 {[%emt 0:00:59]} 44. Rxc5 {[%emt 0:01:49]} h5 {[%emt 0:09:47]} 45. Rc4 {[%emt 0:02:02]} hxg4 {[%emt 0:15:35]} 46. Rxb4 {[%emt 0:00:26]} Bxb4 {[%emt 0:00:05]} 47. hxg4 {[%emt 0:00:03]} Kf7 {[%emt 0:01:11]} 48. Ke4 {[%emt 0:00:25]} Ke6 {[%emt 0:00:05]} 49. Bc1 {[%emt 0:01:20]} Be1 {[%emt 0:00:31]} 50. Be3 {[%emt 0:00:49]} Bh4 {[%emt 0:00:04]} 51. Bd2 {[%emt 0:00:04]} Bg5 {[%emt 0:00:04]} 52. Be1 {[%emt 0:00:04]} Kd6 {[%emt 0:00:24]} 53. Bg3 {[%emt 0:00:17]} Ke6 {[%emt 0:00:20]} 54. Be1 {[%emt 0:00:04]} Bh6 {[%emt 0:01:52]} 55. Bh4 {[%emt 0:00:22]} Bf8 {[%emt 0:00:05]} 56. Bg3 {[%emt 0:00:05]} Bd6 {[%emt 0:00:46]} 57. Bh4 {[%emt 0:00:07]} Kf7 {[%emt 0:01:26]} 58. Kf5 {[%emt 0:00:09]} Be7 {[%emt 0:00:05]} 59. Bg3 {[%emt 0:00:05]} Bf8 {[%emt 0:00:11]} 60. Bxe5 {[%emt 0:00:04]} 1/2-1/2

[Event "FIDE Womens World Cup 2021"]
[Site "Sochi"]
[Date "2021.07.19"]
[Round "3.2"]
[White "Saduakassova, Dinara"]
[Black "Danielian, Elina"]
[Result "1-0"]
[ECO "A05"]
[WhiteElo "2483"]
[BlackElo "2407"]
[Annotator "ChessBase"]
[PlyCount "112"]
[EventDate "2021.07.12"]
[EventType "k.o."]
[EventCountry "RUS"]
[SourceTitle "playchess.com"]
[Source "ChessBase"]
[SourceQuality "1"]
[TimeControl "40/5400+30:1800+30"]

1. Nf3 {[%emt 0:00:20]} Nf6 {[%emt 0:00:06]} 2. g3 {[%emt 0:00:05]} d5 {[%emt 0:03:45]} 3. Bg2 {[%emt 0:00:07]} c6 {[%emt 0:00:17]} 4. O-O {[%emt 0:00:15]} Bf5 {[%emt 0:06:44]} 5. d3 {[%emt 0:01:31]} Nbd7 {[%emt 0:00:13]} 6. Nbd2 {[%emt 0:00:31]} e5 {[%emt 0:00:49]} 7. e4 {[%emt 0:11:50]} dxe4 {[%emt 0:00:54]} 8. dxe4 {[%emt 0:00:04]} Bg6 {[%emt 0:06:35]} 9. Qe1 {[%emt 0:03:58]} Bc5 {[%emt 0:00:51]} 10. Nc4 {[%emt 0:02:40]} Qe7 {[%emt 0:04:24]} 11. Nh4 {[%emt 0:01:34]} O-O {[%emt 0:00:45]} 12. Bd2 {[%emt 0:06:06]} Qe6 {[%emt 0:10:12]} 13. b3 {[%emt 0:06:38]} b5 {[%emt 0:04:12]} 14. Nb2 {[%emt 0:05:51]} Bd4 {[%emt 0:06:14]} 15. c3 {[%emt 0:04:39]} Bb6 {[%emt 0:00:06]} 16. Kh1 {[%emt 0:01:21]} Rfe8 {[%emt 0:12:16]} 17. Qe2 {[%emt 0:06:34]} Rad8 {[%emt 0:00:47]} 18. Rad1 {[%emt 0:04:02]} Nc5 {[%emt 0:06:48]} 19. f3 {[%emt 0:00:40]} Qe7 {[%emt 0:08:49]} 20. Be3 {[%emt 0:04:27]} Ne6 {[%emt 0:00:38]} 21. Nd3 {[%emt 0:01:20]} Nd7 {[%emt 0:01:26]} 22. Nb4 {[%emt 0:03:07]} Nb8 {[%emt 0:01:09]} 23. Bh3 {[%emt 0:04:50]} Nc5 {[%emt 0:11:20]} 24. Rxd8 {[%emt 0:02:11]} Rxd8 {[%emt 0:00:05]} 25. Rd1 {[%emt 0:02:00]} Rd6 {[%emt 0:02:36]} 26. Kg2 {[%emt 0:04:15]} Qd8 {[%emt 0:04:05]} 27. Rxd6 {[%emt 0:03:28]} Qxd6 {[%emt 0:00:03]} 28. Bf5 {[%emt 0:01:43]} a5 {[%emt 0:05:10]} 29. Nd3 {[%emt 0:02:48]} Nba6 {[%emt 0:02:33]} 30. Bc8 {[%emt 0:04:28]} Nxd3 {[%emt 0:00:45]} 31. Bxb6 {[%emt 0:00:10]} Nac5 {[%emt 0:00:03]} 32. Qe3 {[%emt 0:07:53]} a4 {[%emt 0:00:36]} 33. Bxc5 {[%emt 0:01:32]} Nxc5 {[%emt 0:00:04]} 34. b4 {[%emt 0:00:05]} Nd3 {[%emt 0:00:49]} 35. Bb7 {[%emt 0:00:41]} f6 {[%emt 0:01:00]} 36. Bxc6 {[%emt 0:00:47]} Nb2 {[%emt 0:00:44]} 37. Bd5+ {[%emt 0:02:25]} Bf7 {[%emt 0:00:11]} 38. Nf5 {[%emt 0:00:04]} Qc7 {[%emt 0:00:11]} 39. Qc5 {[%emt 0:00:23]} Qd7 {[%emt 0:00:53]} 40. Nd6 {[%emt 0:01:15]} Bxd5 {[%emt 0:00:24]} 41. Qxd5+ {[%emt 0:30:06]} Kf8 {[%emt 0:30:11]} 42. Nxb5 {[%emt 0:00:00]} Qxd5 {[%emt 0:00:00]} 43. exd5 {[%emt 0:00:00]} Ke7 {[%emt 0:00:00]} 44. Kf2 {[%emt 0:00:00]} h5 {[%emt 0:00:00]} 45. Ke2 {[%emt 0:00:00]} f5 {[%emt 0:00:00]} 46. Na3 {[%emt 0:00:00]} Kd6 {[%emt 0:00:00]} 47. c4 {[%emt 0:00:00]} e4 {[%emt 0:00:00]} 48. fxe4 {[%emt 0:00:00]} fxe4 {[%emt 0:00:00]} 49. Nb5+ {[%emt 0:00:00]} Ke5 {[%emt 0:00:00]} 50. d6 {[%emt 0:00:00]} Ke6 {[%emt 0:00:00]} 51. c5 {[%emt 0:00:00]} Nc4 {[%emt 0:00:00]} 52. c6 {[%emt 0:00:00]} a3 {[%emt 0:00:00]} 53. Kf2 {[%emt 0:00:00]} g5 {[%emt 0:00:00]} 54. h3 {[%emt 0:00:00]} g4 {[%emt 0:00:00]} 55. h4 {[%emt 0:00:00]} Nb6 {[%emt 0:00:00]} 56. Ke3 {[%emt 0:00:00]} Kd5 1-0